bitfinex-derivatives/quotes_ETHF0:USTF0_20241023
["timestamp","ask_amount","ask_price","bid_price","bid_amount"]
[1729651994238,3.2078,2616.1,2616.0,1.72426]
[1729651994533,3.2078,2616.1,2615.9,1.38]
[1729651994534,4.5878,2616.1,2615.9,1.38]
[1729651994736,1.72425,2616.1,2616.0,0.4153]
[1729651994928,1.72425,2616.1,2616.0,0.8038]
[1729651998235,1.72424,2616.1,2616.0,1.14806]
[1729651998537,1.38,2616.1,2616.0,1.14806]
[1729651998736,1.72424,2616.1,2616.0,0.8038]
[1729652000239,0.34428,2615.8,2615.7,0.3889]
[1729652000437,1.38,2615.8,2615.7,0.7332]
[1729652000644,1.72428,2615.8,2615.7,0.3889]
[1729652001440,3.2078,2616.2,2615.7,0.3889]
[1729652001741,1.72425,2616.1,2615.9,1.38]
[1729652002234,1.72425,2616.1,2616.0,0.3894]
[1729652002437,1.38,2616.1,2616.0,0.3894]
[1729652002642,1.38,2616.1,2616.0,0.73366]
[1729652003047,1.72424,2616.1,2616.0,0.3894]
[1729652004946,1.72424,2616.1,2616.0,0.7933]
[1729652005850,1.72424,2616.1,2616.0,0.3894]
[1729652006140,2.54964,2616.1,2616.0,0.3894]
[1729652006844,2.94534,2616.1,2616.0,0.3894]
[1729652009039,2.94534,2616.1,2615.7,0.3889]
[1729652009040,2.6011,2616.1,2615.7,0.3889]
[1729652009240,3.2078,2615.8,2615.6,0.3443]
[1729652009444,1.38,2615.7,2615.5,0.8007]
[1729652009941,1.38,2615.7,2615.3,0.4149]
[1729652009942,1.38,2615.6,2615.3,0.4149]
[1729652010140,0.34433,2615.4,2615.3,0.4149]
[1729652010349,4.93213,2615.5,2615.3,0.75924]
[1729652011147,4.93213,2615.5,2615.3,2.13924]
[1729652011348,4.5878,2615.5,2615.3,1.7949]
[1729652011549,0.34433,2615.4,2615.3,1.7949]
[1729652011748,1.72433,2615.4,2615.3,0.4149]
[1729652012051,0.34435,2615.3,2615.2,1.38]
[1729652013146,1.72434,2615.4,2615.2,1.38]
[1729652014851,1.72434,2615.4,2615.2,1.72436]
[1729652015056,1.72434,2615.4,2615.2,1.38]
[1729652015647,1.38,2615.4,2615.2,1.72436]
[1729652015847,1.38,2615.4,2615.2,1.38]
[1729652016442,1.72435,2615.3,2615.1,2.6192]
[1729652016648,1.38,2615.3,2615.1,2.96357]
[1729652016953,1.72435,2615.3,2615.1,2.96357]
[1729652017346,1.72435,2615.3,2615.1,2.6192]
[1729652017553,0.34436,2615.2,2615.1,2.6192]
[1729652019260,0.34436,2615.2,2615.1,2.96357]
[1729652019653,0.34436,2615.2,2615.1,2.6192]
[1729652019853,0.34436,2615.3,2615.1,2.96357]
[1729652020153,0.34436,2615.3,2615.2,1.38]
[1729652021663,0.34436,2615.2,2615.1,2.6192]
[1729652021960,1.38,2615.4,2615.2,0.34436]
[1729652022163,1.72434,2615.4,2615.2,1.72436]
[1729652024959,1.72434,2615.4,2615.2,1.38]
[1729652025162,0.34435,2615.3,2615.2,1.38]
[1729652025557,0.34435,2615.3,2615.1,2.96357]
[1729652026363,3.55214,2615.4,2615.2,1.72435]
[1729652026854,3.2078,2615.4,2615.2,1.72435]
[1729652027062,0.34435,2615.3,2615.2,1.72435]
[1729652028767,1.38,2615.5,2615.2,1.72435]
[1729652029062,3.55214,2615.4,2615.3,0.34435]
[1729652029263,3.2078,2615.4,2615.3,0.34435]
[1729652029464,3.2078,2615.4,2615.3,1.72435]
[1729652029666,3.2078,2615.7,2615.3,5.2032]
[1729652029870,3.2078,2615.7,2615.6,1.72431]
[1729652030566,1.72427,2615.9,2615.7,0.34429]
[1729652030762,1.72427,2615.9,2615.8,1.7973]
[1729652032062,1.72427,2615.9,2615.8,0.4173]
[1729652033963,4.93207,2615.9,2615.8,0.4173]
[1729652034472,1.72427,2615.9,2615.8,0.4173]
[1729652034772,4.93207,2615.9,2615.8,0.4173]
[1729652036063,1.72427,2615.9,2615.8,0.4173]
[1729652036371,4.93207,2615.9,2615.8,0.4173]
[1729652039165,1.72427,2615.9,2615.8,0.4173]
[1729652039363,4.93207,2615.9,2615.8,0.4173]
[1729652040767,0.34431,2615.6,2615.5,2.1877]
[1729652042971,1.38,2615.7,2615.5,2.53202]
[1729652042972,1.7243,2615.7,2615.5,2.53202]
[1729652043279,0.3443,2615.7,2615.6,1.72431]
[1729652043575,0.3443,2615.7,2615.6,1.38]
[1729652044874,1.7794,2615.8,2615.5,1.15202]
[1729652044875,1.7794,2615.8,2615.5,2.1877]
[1729652045067,0.34431,2615.6,2615.5,2.1877]
[1729652048168,3.2078,2615.8,2615.7,0.3443]
[1729652048376,1.38,2616.2,2615.7,0.3443]
[1729652048377,0.34428,2615.9,2615.8,0.34428]
[1729652048569,0.34428,2615.9,2615.8,0.3981]
[1729652048965,0.34428,2615.9,2615.8,0.74238]
[1729652049566,0.34428,2615.9,2615.8,0.3981]
[1729652049774,1.72428,2615.9,2615.8,0.3981]
[1729652050180,1.72428,2615.9,2615.5,0.8077]
[1729652050181,5.2032,2615.9,2615.5,0.8077]
[1729652050478,0.34431,2615.7,2615.6,0.3898]
[1729652051981,1.16509,2615.8,2615.6,0.73411]
[1729652052273,1.16509,2615.8,2615.7,1.38]
[1729652052580,0.75569,2615.8,2615.7,1.38]
[1729652052978,1.38,2616.0,2615.7,1.38]
[1729652053173,1.72426,2616.0,2615.8,1.72427]
[1729652053373,0.34426,2616.0,2615.9,1.38]
[1729652053574,0.34426,2616.0,2615.9,2.1684]
[1729652053875,0.34426,2616.0,2615.9,2.5572]
[1729652055481,5.4028,2616.1,2615.9,2.5572]
[1729652055780,5.4028,2616.1,2616.0,1.72426]
[1729652055781,3.2078,2616.1,2616.0,1.72426]
[1729652056385,3.55204,2616.1,2616.0,1.38]
[1729652057978,3.2078,2616.1,2615.9,2.5572]
[1729652058181,1.72426,2616.0,2615.9,0.3917]
[1729652058383,2.53496,2616.0,2615.9,0.3917]
[1729652058985,0.34427,2615.9,2615.8,1.38]
[1729652059492,5.2032,2615.9,2615.5,1.38]
[1729652059786,1.38,2615.8,2615.5,1.8044]
[1729652059987,0.34431,2615.6,2615.5,1.8044]
[1729652061388,0.77131,2615.6,2615.5,1.8044]
[1729652069109,0.34431,2615.6,2615.5,1.8044]
[1729652073402,0.34431,2615.6,2615.3,0.8434]
[1729652073403,1.7705,2615.6,2615.3,0.8434]
[1729652073603,0.34434,2615.4,2615.3,1.38]
[1729652081916,4.9843,2615.5,2615.2,0.4271]
[1729652082122,0.34435,2615.3,2615.2,1.8071]
[1729652085622,0.34435,2615.3,2615.2,2.15146]
[1729652086315,0.34434,2615.4,2615.2,2.15146]
[1729652086621,4.5878,2615.5,2615.4,1.38]
[1729652086622,4.93212,2615.5,2615.4,1.38]
[1729652087711,1.72432,2615.5,2615.4,1.38]
[1729652088214,4.93212,2615.5,2615.4,1.38]
[1729652088921,1.72432,2615.5,2615.4,1.38]
[1729652089221,4.93212,2615.5,2615.4,1.38]
[1729652089428,1.72432,2615.5,2615.4,1.38]
[1729652089815,4.93212,2615.5,2615.4,1.38]
[1729652090419,1.72432,2615.5,2615.4,1.38]
[1729652090623,4.93212,2615.5,2615.4,1.38]
[1729652091219,1.72432,2615.5,2615.4,1.38]
[1729652091421,1.38,2615.5,2615.3,1.38]
[1729652091625,0.34433,2615.4,2615.3,1.38]
[1729652095929,0.34433,2615.5,2615.3,1.38]
[1729652096120,0.34433,2615.5,2615.4,2.1961]
[1729652098826,0.34433,2615.5,2615.4,0.8161]
[1729652099033,1.72433,2615.5,2615.4,0.3937]
[1729652100126,0.34435,2615.3,2615.2,0.4271]
[1729652100326,1.72435,2615.3,2615.2,0.4271]
[1729652100930,2.13195,2615.3,2615.2,0.4271]
[1729652104024,3.6094,2615.4,2615.2,0.4271]
[1729652104025,3.2078,2615.4,2615.3,0.34435]
[1729652104231,0.34433,2615.5,2615.3,2.15144]
[1729652104435,4.5878,2615.7,2615.4,1.794]
[1729652104636,3.2078,2615.7,2615.6,1.72431]
[1729652105035,3.2078,2615.7,2615.6,5.54751]
[1729652105335,3.5521,2615.7,2615.6,5.2032]
[1729652105535,3.2078,2615.7,2615.6,5.54751]
[1729652106130,3.5521,2615.7,2615.6,5.2032]
[1729652107244,0.3443,2615.7,2615.6,5.2032]
[1729652107734,3.55209,2615.8,2615.7,0.3443]
[1729652108042,3.55209,2615.8,2615.7,2.1437]
[1729652108243,3.2078,2615.8,2615.7,2.1437]
[1729652108742,4.93208,2615.8,2615.7,1.7994]
[1729652110943,1.72428,2615.8,2615.7,1.7994]
[1729652111534,4.5878,2615.8,2615.7,1.7994]
[1729652111944,4.5878,2615.8,2615.7,2.1437]
[1729652112140,4.93208,2615.8,2615.7,2.1437]
[1729652112338,4.93208,2615.8,2615.7,1.7994]
[1729652113638,4.5878,2615.8,2615.7,1.7994]
[1729652113843,4.93208,2615.8,2615.7,2.1437]
[1729652114241,4.93208,2615.8,2615.7,1.7994]
[1729652114442,4.5878,2615.8,2615.7,1.7994]
[1729652114639,4.93208,2615.8,2615.7,2.1437]
[1729652114835,1.72428,2615.8,2615.7,2.1437]
[1729652115147,4.93208,2615.8,2615.7,1.7994]
[1729652115747,4.93208,2615.8,2615.7,2.1437]
[1729652116148,4.93208,2615.8,2615.7,1.7994]
[1729652116746,4.93208,2615.8,2615.7,2.1437]
[1729652116949,4.93208,2615.8,2615.7,1.7994]
[1729652117640,1.72428,2615.8,2615.7,1.7994]
[1729652117846,4.93208,2615.8,2615.7,1.7994]
[1729652119045,3.55208,2615.8,2615.7,2.1437]
[1729652119444,3.55208,2615.8,2615.7,1.7994]
[1729652119644,3.55208,2615.8,2615.7,2.1437]
[1729652120048,3.55208,2615.8,2615.7,1.7994]
[1729652120751,3.2078,2615.8,2615.7,2.1437]
[1729652121343,0.34426,2616.0,2615.7,1.7994]
[1729652121539,4.93205,2616.1,2615.9,1.72426]
[1729652121741,0.34426,2616.0,2615.9,1.38]
[1729652121952,0.34427,2615.9,2615.8,0.409]
[1729652122155,2.1982,2615.9,2615.7,0.4194]
[1729652122347,1.7836,2615.8,2615.6,0.3879]
[1729652122651,1.7243,2615.7,2615.6,0.3879]
[1729652122846,0.34432,2615.5,2615.4,1.38]
[1729652123053,1.72432,2615.5,2615.4,1.7679]
[1729652124041,0.34432,2615.5,2615.4,1.7679]
[1729652127948,1.72432,2615.5,2615.4,1.7679]
[1729652128249,1.72432,2615.5,2615.4,0.3879]
[1729652128451,5.33152,2615.5,2615.4,0.3879]
[1729652129344,2.12372,2615.5,2615.4,1.7679]
[1729652129746,0.74372,2615.5,2615.4,1.7679]
[1729652131452,0.34432,2615.5,2615.4,1.7679]
[1729652132150,0.34432,2615.5,2615.4,2.11223]
[1729652132547,0.34432,2615.5,2615.4,1.7679]
[1729652133057,1.72432,2615.5,2615.4,0.3879]
[1729652133550,0.34432,2615.5,2615.4,1.7679]
[1729652134651,1.7836,2615.8,2615.4,1.7679]
[1729652134857,0.74789,2615.8,2615.7,1.38]
[1729652135357,0.74789,2615.8,2615.7,2.1924]
[1729652135753,0.34429,2615.8,2615.7,2.1924]
[1729652136055,4.5878,2616.0,2615.7,2.53669]
[1729652136258,0.34427,2615.9,2615.7,2.53669]
[1729652137754,1.72428,2615.9,2615.7,2.53669]
[1729652141260,1.38,2615.9,2615.8,0.34428]
[1729652141651,1.38,2615.9,2615.7,2.1924]
[1729652141652,1.72427,2615.9,2615.7,2.1924]
[1729652141865,1.72427,2615.9,2615.7,2.53669]
[1729652147165,0.34428,2615.8,2615.7,2.53669]
[1729652148563,0.34428,2615.8,2615.7,2.1924]
[1729652148760,1.38,2615.8,2615.1,0.99863601]
[1729652149059,0.34432,2615.5,2615.4,1.8013]
[1729652149264,0.34432,2615.5,2615.4,2.14563]
[1729652149572,0.34432,2615.5,2615.4,1.8013]
[1729652152162,0.34432,2615.5,2615.4,2.14563]
[1729652152365,0.34432,2615.5,2615.4,1.8013]
[1729652155870,0.34432,2615.5,2615.4,2.14563]
[1729652156066,0.34432,2615.5,2615.4,1.8013]
[1729652157376,1.72432,2615.5,2615.4,0.4213]
[1729652157674,2.11752,2615.5,2615.4,0.4213]
[1729652162979,1.7732,2615.5,2615.3,1.7845]
[1729652163278,0.34433,2615.4,2615.3,1.7845]
[1729652163679,1.72433,2615.4,2615.3,0.4045]
[1729652167388,1.72433,2615.4,2615.3,1.7845]
[1729652167389,0.34433,2615.4,2615.3,1.7845]
[1729652169886,1.72433,2615.4,2615.3,1.7845]
[1729652170687,0.34436,2615.2,2615.1,0.3944]
[1729652170888,1.72436,2615.2,2615.1,0.3944]
[1729652172482,1.72436,2615.2,2615.1,1.7744]
[1729652173382,1.72436,2615.2,2615.1,2.11877]
[1729652173581,1.72436,2615.2,2615.1,1.7744]
[1729652178790,1.72436,2615.2,2615.1,2.11877]
[1729652179790,1.72436,2615.2,2615.1,0.3944]
[1729652179984,1.72436,2615.2,2615.1,1.7744]
[1729652181079,1.72436,2615.2,2615.1,2.11877]
[1729652181285,1.72436,2615.2,2615.1,1.7744]
[1729652182179,1.72436,2615.2,2615.1,2.11877]
[1729652188089,1.72436,2615.2,2615.1,1.7744]
[1729652188583,1.72436,2615.2,2615.1,2.11877]
[1729652189199,1.72436,2615.2,2615.1,1.7744]
[1729652189894,1.72436,2615.2,2615.1,0.3944]
[1729652190196,1.72436,2615.2,2614.8,0.426]
[1729652190197,0.3444,2614.9,2614.8,2.15041]
[1729652190397,1.7244,2614.9,2614.8,1.806]
[1729652191595,1.7244,2614.9,2614.8,2.54811]
[1729652192296,1.7244,2614.9,2614.8,0.3977]
[1729652192493,0.34444,2614.6,2614.5,0.4072]
[1729652192695,1.72444,2614.6,2614.5,0.4072]
[1729652194597,0.34444,2614.6,2614.5,1.7872]
[1729652195797,1.72444,2614.6,2614.5,1.7872]
[1729652195991,1.72444,2614.6,2614.5,2.13165]
[1729652196503,1.72444,2614.6,2614.5,1.7872]
[1729652196994,0.34444,2614.6,2614.5,1.7872]
[1729652197187,0.34444,2614.6,2614.5,2.13165]
[1729652201104,0.34444,2614.6,2614.5,1.7872]
[1729652201295,0.34438,2615.1,2614.6,1.38]
[1729652201611,0.34436,2615.2,2615.1,0.34437]
[1729652201793,0.34436,2615.2,2615.1,2.52957]
[1729652202204,0.34436,2615.2,2615.1,2.1852]
[1729652202804,0.34436,2615.2,2615.1,2.52957]
[1729652203104,4.93216,2615.3,2615.1,2.52957]
[1729652203501,0.34436,2615.2,2615.1,2.52957]
[1729652203706,0.34436,2615.2,2615.1,2.1852]
[1729652204103,4.93216,2615.3,2615.1,2.52956]
[1729652204403,0.34436,2615.2,2615.1,2.52956]
[1729652205005,1.38,2615.2,2615.1,2.52957]
[1729652205196,1.72436,2615.2,2615.1,2.1852]
[1729652205703,1.72436,2615.2,2615.1,2.52957]
[1729652205998,1.38,2615.2,2615.1,2.52957]
[1729652206503,1.72436,2615.2,2615.1,2.52957]
[1729652207402,1.72436,2615.2,2615.1,2.1852]
[1729652207807,1.72436,2615.2,2615.1,2.52957]
[1729652208309,1.38,2615.2,2615.1,2.52957]
[1729652208507,1.72436,2615.2,2615.1,2.52957]
[1729652208804,3.2078,2615.3,2615.2,0.34436]
[1729652209009,3.55215,2615.3,2615.2,1.72436]
[1729652209312,4.93215,2615.3,2615.2,0.75216]
[1729652209512,4.93215,2615.3,2615.2,0.4078]
[1729652211613,1.72435,2615.3,2615.2,0.4078]
[1729652213007,2.54235,2615.3,2615.2,0.4078]
[1729652213403,2.54235,2615.3,2615.1,0.4168]
[1729652213404,0.34436,2615.2,2615.1,0.4168]
[1729652213605,1.72436,2615.2,2615.1,0.4168]
[1729652213808,0.34436,2615.2,2615.1,0.4168]
[1729652217006,0.34436,2615.2,2615.1,0.76117]
[1729652217206,0.34436,2615.2,2615.1,0.4168]
[1729652217411,1.72436,2615.2,2615.1,0.4168]
[1729652218404,1.72436,2615.2,2615.0,0.34439]
[1729652218610,0.34437,2615.1,2615.0,0.34439]
[1729652218812,0.34439,2615.0,2614.9,2.14839]
[1729652219716,0.34439,2615.1,2615.0,0.34439]
[1729652219907,0.34439,2615.0,2614.9,2.1484]
[1729652220411,0.34439,2615.1,2615.0,0.34438]
[1729652220610,0.34439,2615.0,2614.9,0.76839]
[1729652220813,0.34439,2615.0,2614.9,2.14839]
[1729652221113,0.34439,2615.0,2614.9,0.76839]
[1729652221310,0.34439,2615.0,2614.9,0.424]
[1729652221311,4.93219,2615.0,2614.9,0.424]
[1729652221518,1.72439,2615.0,2614.9,0.424]
[1729652221719,0.34439,2615.0,2614.9,0.424]
[1729652221911,0.34439,2615.0,2614.9,2.1484]
[1729652224611,0.34439,2615.0,2614.9,1.804]
[1729652224811,0.34439,2615.0,2614.9,2.1484]
[1729652228012,0.34439,2615.0,2614.9,1.804]
[1729652228712,1.16859,2615.0,2614.9,1.804]
[1729652229013,1.16859,2615.0,2614.9,2.1484]
[1729652232323,4.5878,2615.2,2614.9,1.804]
[1729652232624,3.2078,2615.2,2615.1,1.72437]
[1729652233219,3.2078,2615.2,2615.1,2.12957]
[1729652233619,3.55216,2615.2,2615.1,2.12957]
[1729652233822,0.34436,2615.2,2615.1,2.12957]
[1729652234625,0.74526,2615.3,2615.2,0.34436]
[1729652235018,0.74526,2615.3,2615.2,0.76426]
[1729652236523,0.4009,2615.3,2615.2,2.14426]
[1729652236719,0.34434,2615.4,2615.3,0.34435]
[1729652237623,4.5878,2615.5,2615.2,1.7999]
[1729652237827,0.34435,2615.3,2615.2,2.14426]
[1729652238924,0.34435,2615.3,2615.2,1.7999]
[1729652242825,0.34435,2615.3,2615.2,2.14426]
[1729652243329,0.34435,2615.3,2615.2,1.7999]
[1729652243526,0.34435,2615.3,2615.2,2.14426]
[1729652243832,1.38,2615.4,2615.3,0.34435]
[1729652243833,0.34433,2615.4,2615.3,0.34435]
[1729652244932,0.34433,2615.4,2615.2,2.14425]
[1729652245127,4.5878,2615.5,2615.2,2.14425]
[1729652245435,0.34435,2615.3,2615.2,2.14425]
[1729652246525,0.34435,2615.3,2615.2,2.14426]
[1729652246731,1.38,2615.4,2615.2,2.14426]
[1729652246732,1.38,2615.4,2615.2,1.7999]
[1729652246934,0.34435,2615.4,2615.3,1.72435]
[1729652247328,0.34435,2615.4,2615.3,1.38]
[1729652248929,0.34435,2615.3,2615.2,2.14426]
[1729652251734,1.38,2615.4,2615.2,1.7999]
[1729652251933,1.72434,2615.4,2615.3,0.34435]
[1729652252532,1.72434,2615.4,2615.2,1.7999]
[1729652252533,1.38,2615.4,2615.2,2.14425]
[1729652252837,0.34435,2615.3,2615.2,2.14425]
[1729652253934,1.38,2615.4,2615.3,0.34435]
[1729652253935,1.72434,2615.4,2615.3,0.34435]
[1729652254134,1.38,2615.4,2615.2,0.4199]
[1729652254438,1.38,2615.4,2614.8,0.34441]
[1729652254439,0.3444,2614.9,2614.8,0.34441]
[1729652254636,0.3444,2614.9,2614.8,2.1993]
[1729652255333,1.38,2615.1,2614.8,2.1993]
[1729652255538,0.3935,2615.2,2614.9,1.72439]
[1729652255539,0.34439,2615.0,2614.9,1.72439]
[1729652260528,0.34438,2615.1,2615.0,0.34438]
[1729652260735,0.34438,2615.1,2615.0,1.72438]
[1729652263136,4.0148,2615.3,2615.0,1.38]
[1729652263337,4.35915,2615.3,2615.2,1.38]
[1729652263837,3.2078,2615.3,2615.2,1.72436]
[1729652264037,3.2078,2615.3,2615.2,2.13906]
[1729652264638,3.2078,2615.3,2615.2,1.7947]
[1729652264842,3.55215,2615.3,2615.2,1.7947]
[1729652265446,3.55215,2615.3,2615.2,2.13906]
[1729652266345,3.55215,2615.3,2615.2,1.7947]
[1729652267835,3.55215,2615.3,2615.2,2.13906]
[1729652271842,3.55215,2615.3,2615.2,1.7947]
[1729652272044,3.55215,2615.3,2615.2,2.13906]
[1729652273047,0.34435,2615.3,2615.2,2.13906]
[1729652278449,1.15295,2615.3,2615.2,1.72436]
[1729652281553,1.15295,2615.3,2615.2,1.38]
[1729652282055,0.8086,2615.3,2615.1,2.52677]
[1729652282353,0.34436,2615.2,2615.1,1.7869]
[1729652282548,2.1886,2615.3,2615.0,1.38]
[1729652282753,0.34437,2615.1,2615.0,1.38]
[1729652283057,0.34439,2615.0,2614.9,2.52729]
[1729652283246,0.73499,2615.0,2614.9,2.52729]
[1729652283848,0.3959,2615.3,2614.9,2.1829]
[1729652284155,1.13415,2615.3,2615.2,1.38]
[1729652284358,0.74025,2615.3,2615.2,1.72436]
[1729652285656,0.34435,2615.3,2615.2,1.72436]
[1729652292755,0.34435,2615.3,2615.2,1.38]
[1729652293960,0.34435,2615.3,2615.2,1.8013]
[1729652294561,0.34435,2615.3,2615.2,2.14566]
[1729652295765,0.34435,2615.3,2615.2,1.8013]
[1729652296165,0.34435,2615.3,2615.2,2.1974]
[1729652296366,0.34435,2615.3,2615.2,2.54175]
[1729652296762,0.34435,2615.3,2615.2,2.1974]
[1729652297462,0.34435,2615.3,2615.2,2.54176]
[1729652299763,0.34435,2615.3,2615.2,2.1974]
[1729652299958,0.34435,2615.3,2615.2,2.54176]
[1729652301369,0.34435,2615.3,2615.2,2.1974]
[1729652301971,0.34435,2615.3,2615.2,2.54176]
[1729652303871,0.34435,2615.3,2615.2,2.1974]
[1729652304267,0.34435,2615.3,2615.2,2.54176]
[1729652304669,0.34435,2615.3,2615.2,2.1974]
[1729652306475,0.34435,2615.3,2615.2,2.54176]
[1729652314282,0.34435,2615.3,2615.2,2.1974]
[1729652314476,0.34435,2615.3,2615.2,2.54176]
[1729652315876,0.34435,2615.3,2615.2,2.1974]
[1729652316377,5.44865,2615.4,2614.9,0.4137]
[1729652316577,0.34439,2615.0,2614.9,1.15269]
[1729652317880,0.34439,2615.0,2614.9,2.53269]
[1729652326175,0.34438,2615.1,2615.0,0.34437]
[1729652326382,0.34438,2615.1,2615.0,1.72437]
[1729652327286,0.34437,2615.2,2615.1,0.34437]
[1729652327488,0.34434,2615.4,2615.3,0.34433]
[1729652327683,0.34434,2615.4,2615.3,1.72433]
[1729652328083,0.34434,2615.4,2615.3,2.12413]
[1729652331185,0.34434,2615.4,2615.3,1.7798]
[1729652332089,0.34434,2615.4,2615.3,2.12415]
[1729652333288,1.72434,2615.4,2615.3,0.3998]
[1729652333591,0.34435,2615.3,2615.2,1.7814]
[1729652333798,0.75185,2615.3,2615.2,1.7814]
[1729652334190,0.75185,2615.3,2615.2,2.12576]
[1729652334392,0.75185,2615.3,2615.2,1.7814]
[1729652335790,0.75185,2615.3,2615.2,0.4014]
[1729652335994,0.34435,2615.3,2615.2,2.12576]
[1729652336495,0.34435,2615.3,2615.2,1.7814]
[1729652346597,0.34435,2615.3,2615.2,0.4014]
[1729652346901,1.7961,2615.3,2615.0,1.38]
[1729652347100,0.34437,2615.1,2615.0,1.38]
[1729652348501,0.74467,2615.1,2615.0,1.38]
[1729652350807,0.34439,2615.0,2614.9,0.4222]
[1729652351002,0.76679,2615.0,2614.9,0.4222]
[1729652354003,0.76679,2615.0,2614.9,1.8022]
[1729652360614,0.34439,2615.0,2614.9,1.8022]
[1729652363024,1.38,2615.0,2614.7,1.38]
[1729652363214,0.34441,2614.8,2614.7,1.38]
[1729652364017,0.34441,2614.8,2614.7,1.72442]
[1729652364622,0.34441,2614.9,2614.8,0.34441]
[1729652364924,0.34441,2614.9,2614.8,1.72441]
[1729652365921,0.34441,2614.9,2614.8,1.38]
[1729652366123,0.34441,2614.9,2614.8,1.72441]
[1729652371628,0.34441,2614.9,2614.8,1.38]
[1729652372127,0.34441,2614.9,2614.8,1.72441]
[1729652373530,0.34441,2614.9,2614.8,1.38]
[1729652375125,0.34441,2614.9,2614.8,1.72441]
[1729652376228,0.34441,2614.9,2614.8,1.38]
[1729652377322,0.34441,2614.9,2614.8,1.72441]
[1729652381033,0.34441,2614.9,2614.8,1.38]
[1729652385536,0.417,2615.0,2614.7,1.38]
[1729652385828,0.34441,2614.8,2614.7,1.38]
[1729652386533,0.34441,2614.8,2614.7,1.72443]
[1729652400345,0.34441,2614.8,2614.7,1.38]
[1729652401149,0.34441,2614.8,2614.2,2.38377468]
[1729652401150,0.34447,2614.4,2614.2,2.38377468]
[1729652401441,1.72447,2614.4,2614.3,0.4204]
[1729652401849,6.5848,2614.4,2613.9,1.00377468]
[1729652402040,1.38,2614.0,2613.8,0.4204]
[1729652402343,0.34453,2613.9,2613.8,1.8004]
[1729652402953,1.38,2613.9,2613.2,4.21157468]
[1729652403140,0.34458,2613.5,2613.4,0.92183385]
[1729652403440,0.34458,2613.5,2613.4,2.30183385]
[1729652404040,0.34458,2613.5,2613.4,1.7875]
[1729652405145,0.34458,2613.5,2613.4,1.38]
[1729652406239,0.3446,2613.4,2613.3,0.4017]
[1729652406544,3.2078,2613.6,2613.3,1.7817]
[1729652406744,3.2078,2613.6,2613.5,1.38]
[1729652407347,3.2078,2613.6,2613.5,1.72458]
[1729652407549,3.2078,2613.6,2613.5,1.38]
[1729652407755,3.55237,2613.6,2613.5,1.38]
[1729652408149,3.2078,2613.6,2613.5,1.38]
[1729652408450,3.2078,2613.6,2613.5,1.7722]
[1729652408650,3.55237,2613.6,2613.5,1.7722]
[1729652409042,3.2078,2613.6,2613.5,2.11678]
[1729652409246,3.55233,2614.0,2613.7,0.34455]
[1729652409451,0.34453,2614.0,2613.9,1.38]
[1729652409756,1.38,2614.2,2613.9,1.38]
[1729652410050,3.5945,2614.3,2613.9,1.38]
[1729652410051,1.72451,2614.1,2613.9,1.38]
[1729652410250,0.34452,2614.0,2613.9,1.38]
[1729652410551,1.72451,2614.1,2613.9,1.38]
[1729652410848,8.4134,2614.0,2613.1,1.38]
[1729652411056,1.72462,2613.2,2613.1,1.38]
[1729652411251,1.72462,2613.2,2613.0,3.2078]
[1729652411553,1.72462,2613.3,2613.1,1.38]
[1729652411749,1.72462,2613.3,2613.2,1.38]
[1729652415052,0.34462,2613.2,2613.1,1.38]
[1729652415351,0.34465,2613.0,2612.9,0.8011]
[1729652415550,0.34465,2613.0,2612.9,2.1811]
[1729652415957,1.72465,2613.0,2612.9,2.1811]
[1729652416360,1.72465,2613.0,2612.9,0.8011]
[1729652419158,1.72465,2613.0,2612.9,1.14576]
[1729652419860,1.72465,2613.0,2612.9,0.8011]
[1729652420258,0.34464,2613.1,2613.0,0.34465]
[1729652420557,1.72464,2613.1,2613.0,0.34465]
[1729652420763,3.55242,2613.3,2613.1,0.34463]
[1729652420963,3.55242,2613.3,2613.2,0.3876]
[1729652421960,8.75882,2613.3,2613.2,0.3876]
[1729652422162,4.93242,2613.3,2613.2,0.3876]
[1729652422362,8.75882,2613.3,2613.2,0.3876]
[1729652422855,4.93242,2613.3,2613.2,0.3876]
[1729652423763,1.72462,2613.3,2613.2,0.3876]
[1729652427262,1.72462,2613.3,2613.2,1.7676]
[1729652427765,1.7246,2613.4,2613.3,0.3446]
[1729652427961,1.7246,2613.4,2613.3,1.1561]
[1729652428166,1.7246,2613.4,2613.3,0.8115]
[1729652429454,1.7246,2613.4,2613.3,2.53611]
[1729652430064,1.7246,2613.4,2613.3,2.1915]
[1729652430458,1.7246,2613.4,2613.3,0.8115]
[1729652435270,1.7246,2613.4,2613.3,0.3945]
[1729652435472,1.7246,2613.4,2612.9,4.5878]
[1729652435473,5.2064,2613.4,2613.0,0.4276]
[1729652435765,1.72464,2613.1,2613.0,1.59625]
[1729652435969,0.34463,2613.2,2613.1,0.34463]
[1729652436159,1.45317,2613.6,2613.0,4.4594]
[1729652436160,1.72462,2613.3,2613.0,4.4594]
[1729652436366,1.38,2613.2,2613.1,1.72464]
[1729652436557,1.38,2613.2,2613.1,0.34464]